{"text_format":"1","workbook":"xlsx","n_sheets":3,"sheets":["Hoja1","Hoja2","Hoja3"],"not_rendered":{"charts":0,"images":0,"macros":1,"external_links":0,"defined_names":8,"comments":0,"pivot_tables":0},"unopened":[],"bounds":{"document_bytes":16777216,"sheet_cells":100000,"rows_first":2000,"rows_last":500,"rows_between":2000,"halvings":0,"cell_chars":16384,"cell_head_chars":4096},"cells_cut":0,"cells_raw":0,"read":"whole","date_system":"1900"}

{"sheet":"Hoja1","index":0,"n_rows":156,"n_cols":9,"rows_kept":156,"cut":false,"hidden":false,"merged":[[3,0,3,8],[44,0,44,6],[125,0,125,6],[62,0,62,6],[53,0,53,6],[5,0,5,3],[7,0,7,2],[22,0,22,8],[36,0,36,8],[45,0,45,8],[54,0,54,8],[63,0,63,8],[72,0,72,8],[81,0,81,8],[17,0,17,1],[17,2,17,6],[135,1,135,4],[89,0,89,6],[100,0,100,6],[80,0,80,6],[71,0,71,6],[104,0,104,8],[124,0,124,6],[115,0,115,1],[128,4,128,6],[129,4,129,6],[114,0,114,7],[112,0,112,6],[102,0,102,8],[151,2,152,5],[143,2,143,5],[150,1,150,4],[146,1,146,4],[147,1,147,4],[148,1,148,4],[149,1,149,4],[9,0,9,1],[9,2,9,6],[10,0,10,1],[10,2,10,6],[11,0,11,4],[11,5,11,6],[34,0,34,8],[91,0,91,1],[12,0,12,4],[12,5,12,6],[13,0,13,4],[13,5,13,6],[27,0,27,8],[18,0,18,1],[18,2,18,6],[26,0,26,8],[25,0,25,8],[23,0,23,8],[24,0,24,8],[91,2,91,7],[90,0,90,7]]}
[]
["JUSTIFICACIÓ ECONÒMICA DEFINITIVA (*)"]
[]
["* (A requeriment de l'òrgan instructor, caldrà acompanyar-la amb la documentació original acreditativa de les despeses: factures, nòmines, etc, perquè pugui ser autenticada)"]
[]
["JUSTIFICACIÓ DE DESPESES"]
[]
["Dades identificatives"]
[]
["Entitat destinatària"]
["Actuació"]
["Previsió pressupost de projecte (import previst en la sol·licitud, incloses aportacions en espècie)"]
["Aportació de l'Ajuntament de Manresa"]
["Diposeu de local en règim de propietat o lloguer? (SI/NO)",null,null,null,null,"NO"]
[null,null,null,null,null,null,{"$f":"IF(F12>0,\"\", \"Compte! Heu d'introduïr l'import del projecte.\")","v":"Compte! Heu d'introduïr l'import del projecte."}]
[null,null,null,null,null,null,{"$f":"IF(F13>0,\"\", \"Compte! Heu d'introduïr l'import de la subvenció atorgada.\")","v":"Compte! Heu d'introduïr l'import de la subvenció atorgada."}]
[]
["En /Na "]
["Representant legal de l'entitat "]
[]
[]
[]
["En relació a l'actuació esmentada a l'encapçalament,  FAIG CONSTAR QUE:"]
["-L'entitat destinatària ha reconegut les obligacions recollides en aquesta relació de despeses, que han estat destinades a l'actuació referida."]
["-Les despeses relacionades són despeses elegibles i es refereixen a actuacions realitzades en el període d'execució establert. "]
["-La quantia de l'aportació efectuada per l'Ajuntament de Manresa, conjuntament amb les altres fonts específiques de finançament de l'actuació, no supera el seu cost total."]
["-Aquesta entitat té arxivats i a disposició de l'Ajuntament de Manresa tots els documents originals justificatius de les obligacions referides en el present document, així com dels ingressos que financen l'actuació i seran conservats per un període no inferior als 6 anys."]
["-L'entitat destinatària està al corrent del pagament de les seves obligacions fiscals i amb la Seguretat Social."]
[]
[]
[]
["Relació de despeses directes generals:"]
[]
[]
["1) DESPESES D'ACTIVITAT   [Per afegir files, situeu el cursor allà on necessiteu més espai i premeu el botó \"Afegir files\"]"]
[]
["Caixets artístics i contractes professionals "]
["Núm. factura / document acreditatiu","Data factura","Nom del proveïdor","NIF del proveïdor / beneficiari","Descripció de la factura","Import","% imputat al projecte","Import imputat (justificat)","Data pagament de la factura"]
[null,null,null,null,null,null,null,{"$f":"IF(Tabla2[[#This Row],[% imputat al projecte]]>0,Tabla2[[#This Row],[Import]]*Tabla2[[#This Row],[% imputat al projecte]],Tabla2[[#This Row],[Import]])","v":0}]
[null,null,null,null,null,null,null,{"$f":"IF(Tabla2[[#This Row],[% imputat al projecte]]>0,Tabla2[[#This Row],[Import]]*Tabla2[[#This Row],[% imputat al projecte]],Tabla2[[#This Row],[Import]])","v":0}]
[null,null,null,null,null,null,null,{"$f":"IF(Tabla2[[#This Row],[% imputat al projecte]]>0,Tabla2[[#This Row],[Import]]*Tabla2[[#This Row],[% imputat al projecte]],Tabla2[[#This Row],[Import]])","v":0}]
[null,null,null,null,null,null,null,{"$f":"IF(Tabla2[[#This Row],[% imputat al projecte]]>0,Tabla2[[#This Row],[Import]]*Tabla2[[#This Row],[% imputat al projecte]],Tabla2[[#This Row],[Import]])","v":0}]
[null,null,null,null,null,null,null,{"$f":"IF(Tabla2[[#This Row],[% imputat al projecte]]>0,Tabla2[[#This Row],[Import]]*Tabla2[[#This Row],[% imputat al projecte]],Tabla2[[#This Row],[Import]])","v":0}]
[null,null,null,null,null,null,"Total caixets i contractes professionals",{"$f":"SUBTOTAL(109,Tabla2[Import imputat (justificat)])","v":0}]
[]
["Lloguers equips i estructures"]
["Núm. factura / document acreditatiu","Data factura","Nom del proveïdor","NIF del proveïdor / beneficiari","Descripció de la factura","Import","% imputat al projecte","Import imputat (justificat)","Data pagament de la factura"]
[null,null,null,null,null,null,null,{"$f":"IF(Tabla3[[#This Row],[% imputat al projecte]]>0,Tabla3[[#This Row],[Import]]*Tabla3[[#This Row],[% imputat al projecte]],Tabla3[[#This Row],[Import]])","v":0}]
[null,null,null,null,null,null,null,{"$f":"IF(Tabla3[[#This Row],[% imputat al projecte]]>0,Tabla3[[#This Row],[Import]]*Tabla3[[#This Row],[% imputat al projecte]],Tabla3[[#This Row],[Import]])","v":0}]
[null,null,null,null,null,null,null,{"$f":"IF(Tabla3[[#This Row],[% imputat al projecte]]>0,Tabla3[[#This Row],[Import]]*Tabla3[[#This Row],[% imputat al projecte]],Tabla3[[#This Row],[Import]])","v":0}]
[null,null,null,null,null,null,null,{"$f":"IF(Tabla3[[#This Row],[% imputat al projecte]]>0,Tabla3[[#This Row],[Import]]*Tabla3[[#This Row],[% imputat al projecte]],Tabla3[[#This Row],[Import]])","v":0}]
[null,null,null,null,null,null,null,{"$f":"IF(Tabla3[[#This Row],[% imputat al projecte]]>0,Tabla3[[#This Row],[Import]]*Tabla3[[#This Row],[% imputat al projecte]],Tabla3[[#This Row],[Import]])","v":0}]
[null,null,null,null,null,null,"Total lloguers equips i estructures",{"$f":"SUBTOTAL(109,Tabla3[Import imputat (justificat)])","v":0}]
[]
["Comunicació i publicitat"]
["Núm. factura / document acreditatiu","Data factura","Nom del proveïdor","NIF del proveïdor / beneficiari","Descripció de la factura","Import","% imputat al projecte","Import imputat (justificat)","Data pagament de la factura"]
[null,null,null,null,null,null,null,{"$f":"IF(Tabla4[[#This Row],[% imputat al projecte]]>0,Tabla4[[#This Row],[Import]]*Tabla4[[#This Row],[% imputat al projecte]],Tabla4[[#This Row],[Import]])","v":0}]
[null,null,null,null,null,null,null,{"$f":"IF(Tabla4[[#This Row],[% imputat al projecte]]>0,Tabla4[[#This Row],[Import]]*Tabla4[[#This Row],[% imputat al projecte]],Tabla4[[#This Row],[Import]])","v":0}]
[null,null,null,null,null,null,null,{"$f":"IF(Tabla4[[#This Row],[% imputat al projecte]]>0,Tabla4[[#This Row],[Import]]*Tabla4[[#This Row],[% imputat al projecte]],Tabla4[[#This Row],[Import]])","v":0}]
[null,null,null,null,null,null,null,{"$f":"IF(Tabla4[[#This Row],[% imputat al projecte]]>0,Tabla4[[#This Row],[Import]]*Tabla4[[#This Row],[% imputat al projecte]],Tabla4[[#This Row],[Import]])","v":0}]
[null,null,null,null,null,null,null,{"$f":"IF(Tabla4[[#This Row],[% imputat al projecte]]>0,Tabla4[[#This Row],[Import]]*Tabla4[[#This Row],[% imputat al projecte]],Tabla4[[#This Row],[Import]])","v":0}]
[null,null,null,null,null,null,"Total comunicació i publicitat",{"$f":"SUBTOTAL(109,Tabla4[Import imputat (justificat)])","v":0}]
[]
["Altres serveis contractats"]
["Núm. factura / document acreditatiu","Data factura","Nom del proveïdor","NIF del proveïdor / beneficiari","Descripció de la factura","Import","% imputat al projecte","Import imputat (justificat)","Data pagament de la factura"]
[null,null,null,null,null,null,null,{"$f":"IF(Tabla5[[#This Row],[% imputat al projecte]]>0,Tabla5[[#This Row],[Import]]*Tabla5[[#This Row],[% imputat al projecte]],Tabla5[[#This Row],[Import]])","v":0}]
[null,null,null,null,null,null,null,{"$f":"IF(Tabla5[[#This Row],[% imputat al projecte]]>0,Tabla5[[#This Row],[Import]]*Tabla5[[#This Row],[% imputat al projecte]],Tabla5[[#This Row],[Import]])","v":0}]
[null,null,null,null,null,null,null,{"$f":"IF(Tabla5[[#This Row],[% imputat al projecte]]>0,Tabla5[[#This Row],[Import]]*Tabla5[[#This Row],[% imputat al projecte]],Tabla5[[#This Row],[Import]])","v":0}]
[null,null,null,null,null,null,null,{"$f":"IF(Tabla5[[#This Row],[% imputat al projecte]]>0,Tabla5[[#This Row],[Import]]*Tabla5[[#This Row],[% imputat al projecte]],Tabla5[[#This Row],[Import]])","v":0}]
[null,null,null,null,null,null,null,{"$f":"IF(Tabla5[[#This Row],[% imputat al projecte]]>0,Tabla5[[#This Row],[Import]]*Tabla5[[#This Row],[% imputat al projecte]],Tabla5[[#This Row],[Import]])","v":0}]
[null,null,null,null,null,null,"Total altres serveis contractats",{"$f":"SUBTOTAL(109,Tabla5[Import imputat (justificat)])","v":0}]
[]
["Assegurances imputades a l'activitat (no a bens mobles o immobles ni a funcionament genèric de l'entitat)"]
["Núm. factura / document acreditatiu","Data factura","Nom del proveïdor","NIF del proveïdor / beneficiari","Descripció de la factura","Import","% imputat al projecte","Import imputat (justificat)","Data pagament de la factura"]
[null,null,null,null,null,null,null,{"$f":"IF(Tabla6[[#This Row],[% imputat al projecte]]>0,Tabla6[[#This Row],[Import]]*Tabla6[[#This Row],[% imputat al projecte]],Tabla6[[#This Row],[Import]])","v":0}]
[null,null,null,null,null,null,null,{"$f":"IF(Tabla6[[#This Row],[% imputat al projecte]]>0,Tabla6[[#This Row],[Import]]*Tabla6[[#This Row],[% imputat al projecte]],Tabla6[[#This Row],[Import]])","v":0}]
[null,null,null,null,null,null,null,{"$f":"IF(Tabla6[[#This Row],[% imputat al projecte]]>0,Tabla6[[#This Row],[Import]]*Tabla6[[#This Row],[% imputat al projecte]],Tabla6[[#This Row],[Import]])","v":0}]
[null,null,null,null,null,null,null,{"$f":"IF(Tabla6[[#This Row],[% imputat al projecte]]>0,Tabla6[[#This Row],[Import]]*Tabla6[[#This Row],[% imputat al projecte]],Tabla6[[#This Row],[Import]])","v":0}]
[null,null,null,null,null,null,null,{"$f":"IF(Tabla6[[#This Row],[% imputat al projecte]]>0,Tabla6[[#This Row],[Import]]*Tabla6[[#This Row],[% imputat al projecte]],Tabla6[[#This Row],[Import]])","v":0}]
[null,null,null,null,null,null,"Total assegurances",{"$f":"SUBTOTAL(109,Tabla6[Import imputat (justificat)])","v":0}]
[]
["Altres despeses"]
["Núm. factura / document acreditatiu","Data factura","Nom del proveïdor","NIF del proveïdor / beneficiari","Descripció de la factura","Import","% imputat al projecte","Import imputat (justificat)","Data pagament de la factura"]
[null,null,null,null,null,null,null,{"$f":"IF(Tabla7[[#This Row],[% imputat al projecte]]>0,Tabla7[[#This Row],[Import]]*Tabla7[[#This Row],[% imputat al projecte]],Tabla7[[#This Row],[Import]])","v":0}]
[null,null,null,null,null,null,null,{"$f":"IF(Tabla7[[#This Row],[% imputat al projecte]]>0,Tabla7[[#This Row],[Import]]*Tabla7[[#This Row],[% imputat al projecte]],Tabla7[[#This Row],[Import]])","v":0}]
[null,null,null,null,null,null,null,{"$f":"IF(Tabla7[[#This Row],[% imputat al projecte]]>0,Tabla7[[#This Row],[Import]]*Tabla7[[#This Row],[% imputat al projecte]],Tabla7[[#This Row],[Import]])","v":0}]
[null,null,null,null,null,null,null,{"$f":"IF(Tabla7[[#This Row],[% imputat al projecte]]>0,Tabla7[[#This Row],[Import]]*Tabla7[[#This Row],[% imputat al projecte]],Tabla7[[#This Row],[Import]])","v":0}]
[null,null,null,null,null,null,null,{"$f":"IF(Tabla7[[#This Row],[% imputat al projecte]]>0,Tabla7[[#This Row],[Import]]*Tabla7[[#This Row],[% imputat al projecte]],Tabla7[[#This Row],[Import]])","v":0}]
[null,null,null,null,null,null,"Total altres despeses",{"$f":"SUBTOTAL(109,Tabla7[Import imputat (justificat)])","v":0}]
[]
["Despeses directes de personal contractat per a la gestió de les activitats (amb alta a la Seguretat Social)"]
["Període per perceptor"]
["Des de","Fins a","Nom i cognoms del perceptor","Categoria professional del preceptor","Concepte (nòmina, Seg.soc., ","Import","% imputat al projecte","Import imputat (justificat)","Columna1"]
[null,null,null,null,null,null,null,{"$f":"IF(Hoja1!$G94>0,Hoja1!$F94*Hoja1!$G94,Hoja1!$F94)","v":0}]
[null,null,null,null,null,null,null,{"$f":"IF(Hoja1!$G95>0,Hoja1!$F95*Hoja1!$G95,Hoja1!$F95)","v":0}]
[null,null,null,null,null,null,null,{"$f":"IF(Hoja1!$G96>0,Hoja1!$F96*Hoja1!$G96,Hoja1!$F96)","v":0}]
[null,null,null,null,null,null,null,{"$f":"IF(Hoja1!$G97>0,Hoja1!$F97*Hoja1!$G97,Hoja1!$F97)","v":0}]
[null,null,null,null,null,null,null,{"$f":"IF(Hoja1!$G98>0,Hoja1!$F98*Hoja1!$G98,Hoja1!$F98)","v":0}]
[null,null,null,null,null,null,"Total despeses directes de personal",{"$f":"SUBTOTAL(109,Tabla9[Import imputat (justificat)])","v":0}]
[]
["TOTAL ACTIVITAT",null,null,null,null,null,null,{"$f":"SUM(H44,H53,H62,H71,H80,H89,H99)","v":0}]
[]
["2) DESPESES DE FUNCIONAMENT"]
[]
["Despeses indirectes"]
["Núm. factura / document acreditatiu","Data factura","Nom del proveïdor","NIF del proveïdor / beneficiari","Descripció de la factura","Import","% imputat al projecte","Import imputat (justificat)","Data pagament de la factura"]
[null,null,null,null,null,null,null,{"$f":"IF(Tabla8[[#This Row],[% imputat al projecte]]>0,+F107*G107,Tabla8[[#This Row],[Import]])","v":0}]
[null,null,null,null,null,null,null,{"$f":"IF(Tabla8[[#This Row],[% imputat al projecte]]>0,+F108*G108,Tabla8[[#This Row],[Import]])","v":0}]
[null,null,null,null,null,null,null,{"$f":"IF(Tabla8[[#This Row],[% imputat al projecte]]>0,+F109*G109,Tabla8[[#This Row],[Import]])","v":0}]
[null,null,null,null,null,null,null,{"$f":"IF(Tabla8[[#This Row],[% imputat al projecte]]>0,+F110*G110,Tabla8[[#This Row],[Import]])","v":0}]
[null,null,null,null,null,null,null,{"$f":"IF(Tabla8[[#This Row],[% imputat al projecte]]>0,+F111*G111,Tabla8[[#This Row],[Import]])","v":0}]
[null,null,null,null,null,null,"Despeses indirectes",{"$f":"SUBTOTAL(109,Tabla8[Import imputat (justificat)])","v":0}]
[]
[]
["Despeses directes de personal (personal d'estructura amb alta a la Seguretat Social)"]
["Període per perceptor"]
["Des de","Fins a","Nom i cognoms del perceptor","Categoria professional del preceptor","Concepte (nòmina, Seg.soc., ","Import","% imputat al projecte","Import imputat (justificat)","Columna1"]
[null,null,null,null,null,null,null,{"$f":"IF(Hoja1!$G118>0,Hoja1!$F118*Hoja1!$G118,Hoja1!$F118)","v":0}]
[null,null,null,null,null,null,null,{"$f":"IF(Hoja1!$G119>0,Hoja1!$F119*Hoja1!$G119,Hoja1!$F119)","v":0}]
[null,null,null,null,null,null,null,{"$f":"IF(Hoja1!$G120>0,Hoja1!$F120*Hoja1!$G120,Hoja1!$F120)","v":0}]
[null,null,null,null,null,null,null,{"$f":"IF(Hoja1!$G121>0,Hoja1!$F121*Hoja1!$G121,Hoja1!$F121)","v":0}]
[null,null,null,null,null,null,null,{"$f":"IF(Hoja1!$G122>0,Hoja1!$F122*Hoja1!$G122,Hoja1!$F122)","v":0}]
[null,null,null,null,null,null,"Total despeses directes de personal",{"$f":"SUBTOTAL(109,Tabla10[Import imputat (justificat)])","v":0},{"$f":"SUBTOTAL(103,Tabla10[Columna1])","v":0}]
[]
["TOTAL FUNCIONAMENT",null,null,null,null,null,null,{"$f":"SUM(H112,H123)","v":0}]
["Aquesta quantitat no pot sobrepassar el 10% del total o el 25% si disposeu de local propi o en lloguer. El percentatge que heu aplicat és:",null,null,null,null,null,null,{"$f":"+H125/H131","v":{"$error":"#DIV/0!"}},{"$f":"IF(LOCAL=\"SI\",IF(H126>0.25,\"Alerta! Heu sobrepassat el límit màxima del 25% en despeses de funcionament.\",\"Correcte!\"),IF(H126>0.1,\"Alerta! Heu sobrepassat el límit màxima del 10% en despeses de funcionament.\",\"Correcte!\"))","v":{"$error":"#DIV/0!"}}]
[]
[]
[null,null,null,null,"Despeses d'activitats:",null,null,{"$f":"+Cost_activitat","v":0}]
[null,null,null,null,"Despeses de funcionament:",null,null,{"$f":"+Cost_funcionament","v":0}]
[null,null,null,null,null,null,"TOTAL DESPESES JUSTIFICADES",{"$f":"SUM(H129:H130)","v":0}]
[]
["Informo que l'estructura de finançament i cost total de l'actuació és:"]
[]
[]
[null,"FONT DE FINANÇAMENT",null,null,null,"IMPORT","%"]
[null,{"$f":"IF(ENTITAT<>0,ENTITAT,\"Nom de l'entitat\") & \" (Recursos propis)\"","v":"Nom de l'entitat (Recursos propis)"},null,null,null,null,{"$f":"IF(Tabla12[[#This Row],[Columna5]]>0,+Tabla12[[#This Row],[Columna5]]/Tabla12[[#Totals],[Columna5]],\"\")","v":""},{"$f":"IF(Tabla12[[#This Row],[Columna5]]>0, \"\",\"Error, no heu introduït els recursos propis destinats all projecte\")","v":"Error, no heu introduït els recursos propis destinats all projecte"}]
[null,"Ajuntament de Manresa",null,null,{"$f":"IF(Subvenció/Cost_total>0.5,\"Alerta! El finançament municipal no pot sobrepassar el 50% del cost del projecte.\",\"\")","v":{"$error":"#DIV/0!"}},{"$f":"+Subvenció","v":0},{"$f":"IF(Tabla12[[#This Row],[Columna5]]>0,+Tabla12[[#This Row],[Columna5]]/Tabla12[[#Totals],[Columna5]],\"\")","v":""},{"$f":"IF(F13>0, \"\",\"Error, no heu introduït l'import de la subvenció al començament del formulari\")","v":"Error, no heu introduït l'import de la subvenció al començament del formulari"}]
[null,"Altres (especificar)",null,null,null,0,{"$f":"IF(Tabla12[[#This Row],[Columna5]]>0,+Tabla12[[#This Row],[Columna5]]/Tabla12[[#Totals],[Columna5]],\"\")","v":""}]
[null,null,null,null,null,0,{"$f":"IF(Tabla12[[#This Row],[Columna5]]>0,+Tabla12[[#This Row],[Columna5]]/Tabla12[[#Totals],[Columna5]],\"\")","v":""}]
[null,null,null,null,null,0,{"$f":"IF(Tabla12[[#This Row],[Columna5]]>0,+Tabla12[[#This Row],[Columna5]]/Tabla12[[#Totals],[Columna5]],\"\")","v":""}]
[null,null,null,null,"TOTAL INGRESSOS",{"$f":"SUBTOTAL(109,Tabla12[Columna5])","v":0}]
[]
[null,null,{"$f":"IF(ROUND(Tabla12[[#Totals],[Columna5]],2)<>ROUND(H131,2),\"Alerta! Cal quadrar el cost del projecte amb la suma dels ingressos\",\"\")","v":""}]
[]
[]
[null,"BALANÇ ECONÒMIC PROJECTE",null,null,null,"IMPORT"]
[null,"Previsió pressupost de projecte (import previst en la sol·licitud, incloses aportacions en espècie)",null,null,null,{"$f":"+Cost_Projecte","v":0},{"$f":"IF(F12>0, \"\",\"Error, no heu introduït l'import total del projecte al començament del formulari\")","v":"Error, no heu introduït l'import total del projecte al començament del formulari"}]
[null,"Total despeses justificades",null,null,null,{"$f":"+Cost_total","v":0}]
[null,"Desviacions negatives",null,null,null,{"$f":"IF(+F149-F148>0,0,+F149-F148)","v":0}]
[null,"% desviació",null,null,null,{"$f":"IF(F150/F148<0,F150/F148,\"Correcte!\")","v":{"$error":"#DIV/0!"}}]
[null,null,{"$f":"IF(F151<-0.2,\"Alerta! Heu sobrepassat el 20% de desviació respecte de l'import a justificar. Això pot comportar una reducció proporcional de la subvenció atorgada.\",IF(AND(F151<0,F51>-0.2), \"La desviació no supera el 20% respecte l'import a justificar. La justificació és correcta\",\"\"))","v":{"$error":"#DIV/0!"}}]
[]
[]
[]
["Per qualsevol dubte que tingueu a l'hora d'omplir aquest formulari, poseu-vos en contacte amb els serveis tècnics de la regidoria de Cultura de l'Ajuntament de Manresa."]

{"sheet":"Hoja2","index":1,"n_rows":3,"n_cols":1,"rows_kept":3,"cut":false,"hidden":false,"merged":[]}
["Local"]
["SI"]
["NO"]

{"sheet":"Hoja3","index":2,"n_rows":0,"n_cols":0,"rows_kept":0,"cut":false,"hidden":false,"merged":[]}